bitfinex-derivatives/quotes_BTCF0:USTF0_20250724
["timestamp","ask_amount","ask_price","bid_price","bid_amount"]
[1753358185288,1.30936273,118780.0,118770.0,1.03950811]
[1753358185486,0.88822823,118780.0,118770.0,1.03950811]
[1753358185685,0.00739767,118780.0,118770.0,1.25007536]
[1753358185880,0.00739767,118780.0,118770.0,1.5699]
[1753358186082,0.00739767,118780.0,118770.0,1.07971219]
[1753358186287,0.60355767,118780.0,118770.0,1.36971219]
[1753358186488,0.60355767,118780.0,118770.0,1.06971219]
[1753358186690,0.60355767,118780.0,118770.0,1.35971219]
[1753358186883,0.00739767,118780.0,118770.0,1.35971219]
[1753358187283,0.60359767,118780.0,118770.0,1.35971219]
[1753358188086,0.60359767,118780.0,118770.0,1.14914494]
[1753358188287,0.60359767,118780.0,118770.0,1.35971219]
[1753358189292,0.60359767,118780.0,118770.0,1.29933275]
[1753358189490,0.60359767,118780.0,118770.0,1.37470029]
[1753358190998,0.60359767,118780.0,118770.0,1.58526754]
[1753358191192,0.00739767,118780.0,118770.0,1.58526754]
[1753358191895,0.59682347,118780.0,118770.0,0.7987655]
[1753358192091,0.59682347,118780.0,118770.0,0.87413304]
[1753358192298,0.38625622,118780.0,118770.0,1.00933275]
[1753358192886,0.59682347,118780.0,118770.0,0.7987655]
[1753358193092,0.38625622,118780.0,118770.0,1.00933275]
[1753358193286,0.17568897,118780.0,118770.0,1.00933275]
[1753358193491,0.38625622,118780.0,118770.0,1.00933275]
[1753358193696,0.17568897,118780.0,118770.0,0.7987655]
[1753358193895,0.98341622,118780.0,118770.0,1.00933275]
[1753358194297,0.77284897,118780.0,118770.0,0.7987655]
[1753358194497,0.98341622,118780.0,118770.0,1.00933275]
[1753358194697,0.98341622,118780.0,118770.0,0.7987655]
[1753358194895,0.98341622,118780.0,118770.0,1.00933275]
[1753358195799,0.98341622,118780.0,118770.0,0.7987655]
[1753358196007,0.98341622,118780.0,118770.0,1.06968072]
[1753358196505,0.77284897,118780.0,118770.0,1.06968072]
[1753358196904,0.98341622,118780.0,118770.0,1.06968072]
[1753358198512,0.98341622,118780.0,118770.0,1.08223078]
[1753358198709,0.00739767,118780.0,118770.0,1.05223078]
[1753358199015,0.60387767,118780.0,118770.0,0.99188281]
[1753358199211,0.60387767,118780.0,118770.0,1.00188281]
[1753358199410,0.60387767,118780.0,118770.0,1.34188281]
[1753358199609,0.60387767,118780.0,118770.0,0.78131556]
[1753358200009,0.60387767,118780.0,118770.0,0.99188281]
[1753358200213,0.60387767,118780.0,118770.0,1.36188281]
[1753358200410,0.60387767,118780.0,118770.0,0.99188281]
[1753358200611,0.60387767,118780.0,118770.0,1.31188281]
[1753358200813,0.60387767,118780.0,118770.0,1.14211556]
[1753358201013,0.60387767,118780.0,118770.0,1.35268281]
[1753358201214,0.60387767,118780.0,118770.0,1.14211556]
[1753358201416,0.60387767,118780.0,118770.0,1.35268281]
[1753358202109,0.60387767,118780.0,118770.0,1.71268281]
[1753358202309,0.60387767,118780.0,118770.0,1.35268281]
[1753358202516,0.60387767,118780.0,118770.0,1.68268281]
[1753358202818,0.60387767,118780.0,118770.0,1.35268281]
[1753358203412,0.60387767,118780.0,118770.0,1.14211556]
[1753358203611,0.60387767,118780.0,118770.0,1.35268281]
[1753358204113,0.60387767,118780.0,118770.0,1.52211556]
[1753358204316,0.77216887,118780.0,118770.0,1.14211556]
[1753358204520,0.81444492,118780.0,118770.0,1.52990235]
[1753358204719,0.60387767,118780.0,118770.0,1.4004696]
[1753358205020,0.81444492,118780.0,118770.0,1.41286498]
[1753358206008,0.81444492,118780.0,118770.0,1.4004696]
[1753358206213,0.81444492,118780.0,118770.0,1.41286532]
[1753358206913,0.81444492,118780.0,118770.0,1.41286593]
[1753358207221,0.81444492,118780.0,118770.0,1.4004696]
[1753358208312,1.52330347,118780.0,118770.0,1.04694317]
[1753358208516,1.19330347,118780.0,118770.0,1.04694317]
[1753358208708,1.19330347,118780.0,118770.0,1.25751042]
[1753358209516,1.19330347,118780.0,118770.0,1.04694317]
[1753358209713,1.19330347,118780.0,118770.0,1.04694573]
[1753358210114,1.19330347,118780.0,118770.0,1.0345454]
[1753358210314,1.19430347,118780.0,118770.0,1.09488225]
[1753358210720,1.19630347,118780.0,118770.0,1.09488225]
[1753358211322,1.19630347,118780.0,118770.0,1.3054495]
[1753358211523,1.19630347,118780.0,118770.0,1.09488225]
[1753358211824,1.19630347,118780.0,118770.0,1.3054495]
[1753358212214,0.98573622,118780.0,118770.0,1.3054495]
[1753358212520,0.17868897,118780.0,118770.0,1.3054495]
[1753358212718,0.98889622,118780.0,118770.0,1.6654495]
[1753358213027,0.98889622,118780.0,118770.0,1.3054495]
[1753358213524,0.98889622,118780.0,118770.0,1.6154495]
[1753358213724,0.98689622,118780.0,118770.0,1.40488225]
[1753358214026,0.98689622,118780.0,118770.0,1.6454495]
[1753358214328,0.98589622,118780.0,118770.0,1.3054495]
[1753358214523,0.98589622,118780.0,118770.0,1.32048019]
[1753358217328,0.77532897,118780.0,118770.0,1.33286376]
[1753358217527,0.98589622,118780.0,118770.0,1.69286376]
[1753358218316,0.77532897,118780.0,118770.0,1.69286376]
[1753358218522,0.77532897,118780.0,118770.0,1.69286578]
[1753358219727,0.77532897,118780.0,118770.0,1.33286578]
[1753358219927,0.77532897,118780.0,118770.0,1.65286578]
[1753358220727,0.77532897,118780.0,118770.0,1.33286578]
[1753358220927,0.77532897,118780.0,118770.0,1.42424578]
[1753358221827,0.98589622,118780.0,118770.0,1.42424578]
[1753358223028,0.98589622,118780.0,118770.0,1.69887824]
[1753358223230,0.98589622,118780.0,118770.0,1.34888704]
[1753358224024,0.98589622,118780.0,118770.0,1.70888704]
[1753358224229,0.98589622,118780.0,118770.0,1.68888704]
[1753358224531,0.98589622,118780.0,118770.0,1.47831979]
[1753358224730,0.98589622,118780.0,118770.0,1.42425458]
[1753358224939,0.98589622,118780.0,118770.0,1.42425457]
[1753358226131,0.98589622,118780.0,118770.0,1.77425457]
[1753358226334,0.77532897,118780.0,118770.0,1.77425457]
[1753358226527,0.98589622,118780.0,118770.0,1.77425457]
[1753358227731,0.98589622,118780.0,118770.0,1.42425457]
[1753358228132,0.98589622,118780.0,118770.0,1.74425457]
[1753358228741,0.98589622,118780.0,118770.0,1.42425457]
[1753358229432,0.98589622,118780.0,118770.0,1.79425457]
[1753358229837,0.77532897,118780.0,118770.0,1.42425457]
[1753358230036,0.98589622,118780.0,118770.0,1.42425457]
[1753358230530,0.77532897,118780.0,118770.0,1.76425457]
[1753358230932,0.98589622,118780.0,118770.0,1.76425457]
[1753358231130,0.98589622,118780.0,118770.0,1.42425457]
[1753358232235,0.98589622,118780.0,118770.0,1.21367178]
[1753358232433,0.98589622,118780.0,118770.0,1.42423903]
[1753358232635,0.98589622,118780.0,118770.0,1.78423903]
[1753358232836,0.98589622,118780.0,118770.0,1.42423903]
[1753358233040,0.98589622,118780.0,118770.0,1.74423903]
[1753358233428,0.98589622,118780.0,118770.0,1.42423903]
[1753358233730,0.98589622,118780.0,118770.0,1.21367178]
[1753358233935,0.98589622,118780.0,118770.0,1.42423903]
[1753358238734,0.77532897,118780.0,118770.0,1.21367178]
[1753358238940,0.98589622,118780.0,118770.0,1.42423903]
[1753358239241,0.77532897,118780.0,118770.0,1.42423903]
[1753358239731,0.60151767,118780.0,118770.0,1.77423903]
[1753358239936,0.98037612,118780.0,118770.0,1.42423903]
[1753358240532,0.98037612,118780.0,118770.0,1.75423903]
[1753358241242,0.98037612,118780.0,118770.0,1.42423903]
[1753358241936,0.00739767,118780.0,118770.0,1.34887149]
[1753358242141,0.97961622,118780.0,118770.0,1.34887149]
[1753358242341,0.97961622,118780.0,118770.0,1.42423903]
[1753358242741,0.81132492,118780.0,118770.0,1.42423903]
[1753358242942,0.60075767,118780.0,118770.0,1.34887149]
[1753358243544,0.60075767,118780.0,118770.0,1.36887149]
[1753358243744,0.76904887,118780.0,118770.0,1.36887149]
[1753358243943,0.76904887,118780.0,118770.0,1.36887653]
[1753358244841,0.76904887,118780.0,118770.0,1.44424407]
[1753358245747,0.60075767,118780.0,118770.0,1.23367682]
[1753358245942,0.00739767,118780.0,118770.0,1.75424407]
[1753358246247,0.60051767,118780.0,118770.0,1.46424407]
[1753358246549,0.60051767,118780.0,118770.0,1.25367682]
[1753358246849,0.76880887,118780.0,118770.0,1.25367682]
[1753358247152,0.76880887,118780.0,118770.0,1.70887653]
[1753358247648,0.76880887,118780.0,118770.0,1.34887653]
[1753358247950,0.76880887,118780.0,118770.0,1.35887653]
[1753358248144,0.97937612,118780.0,118770.0,1.35887653]
[1753358248545,0.97937612,118780.0,118770.0,1.65887653]
[1753358248744,0.97937612,118780.0,118770.0,1.35887653]
[1753358250551,0.97937612,118780.0,118770.0,1.14830928]
[1753358250753,0.97937612,118780.0,118770.0,1.35887653]
[1753358250954,0.97937612,118780.0,118770.0,1.68887653]
[1753358251448,0.97937612,118780.0,118770.0,1.35887653]
[1753358251646,0.97937612,118780.0,118770.0,1.34887653]
[1753358251844,0.76880887,118780.0,118770.0,1.35887653]
[1753358252045,0.97937612,118780.0,118770.0,1.43424407]
[1753358252446,0.97937612,118780.0,118770.0,0.98000388]
[1753358252647,1.52922337,118780.0,118770.0,0.47090388]
[1753358252950,1.89002337,118780.0,118770.0,0.15811764]
[1753358253150,0.93682337,118780.0,118770.0,0.05128]
[1753358253351,1.52978337,118780.0,118770.0,0.05128]
[1753358253548,0.1683054,118770.0,118760.0,0.13568]
[1753358253748,0.9294399,118770.0,118760.0,0.05049]
[1753358254054,0.1683196,118760.0,118750.0,0.15402764]
[1753358254256,2.6771741,118760.0,118750.0,0.09363]
[1753358254451,3.16364201,118760.0,118750.0,0.09363]
[1753358254850,2.82116179,118760.0,118750.0,0.45443]
[1753358255044,2.80284201,118760.0,118750.0,0.46681022]
[1753358255248,3.02344138,118760.0,118750.0,0.10601022]
[1753358255453,3.02344138,118760.0,118740.0,0.05049]
[1753358255454,0.1683338,118750.0,118740.0,0.05049]
[1753358255657,0.78926767,118750.0,118740.0,0.42366673]
[1753358255853,0.91561933,118750.0,118740.0,0.05049]
[1753358256351,0.168348,118740.0,118730.0,0.6227921]
[1753358256557,1.37400187,118740.0,118730.0,0.63516156]
[1753358256858,1.50035353,118740.0,118730.0,0.63516156]
[1753358257060,1.21941966,118740.0,118730.0,0.67721156]
[1753358257252,1.50035353,118740.0,118730.0,0.6648421]
[1753358257955,1.50035353,118740.0,118730.0,0.6658421]
[1753358259161,1.50035353,118740.0,118730.0,0.6688421]
[1753358260456,1.50035343,118740.0,118730.0,0.7549521]
[1753358260861,1.21941956,118740.0,118730.0,0.7549521]
[1753358261063,1.56898126,118740.0,118730.0,0.7549521]
[1753358262864,0.45635166,118740.0,118730.0,0.7549521]
[1753358263050,1.22025966,118740.0,118730.0,0.7549521]
[1753358263255,1.50111353,118740.0,118730.0,0.7549521]
[1753358265761,0.90563353,118740.0,118730.0,0.7549521]
[1753358265963,1.50123353,118740.0,118730.0,0.7549521]
[1753358266661,1.50107353,118740.0,118730.0,0.7549521]
[1753358268263,0.90563353,118740.0,118730.0,0.7549521]
[1753358268566,1.50111353,118740.0,118730.0,0.7549521]
[1753358269368,0.90563353,118740.0,118730.0,0.7549521]
[1753358269568,1.50095353,118740.0,118730.0,0.7549521]
[1753358269771,1.50079353,118740.0,118730.0,0.7549521]
[1753358270475,1.50087353,118740.0,118730.0,0.7549521]
[1753358270865,1.50079353,118740.0,118730.0,0.7549521]
[1753358272769,0.90563353,118740.0,118730.0,0.7549521]
[1753358272971,1.50075353,118740.0,118730.0,0.7549521]
[1753358273472,0.90563353,118740.0,118730.0,0.7549521]
[1753358273670,1.50047353,118740.0,118730.0,0.7549521]
[1753358273971,1.50035353,118740.0,118730.0,0.7549521]
[1753358275360,0.97278769,118740.0,118730.0,0.7549521]
[1753358275565,1.56750769,118740.0,118730.0,0.7549521]
[1753358277166,1.70805054,118740.0,118730.0,0.7549521]
[1753358281183,1.28657382,118740.0,118730.0,0.7549521]
[1753358281477,1.70805054,118740.0,118730.0,0.7549521]
[1753358286081,1.28657382,118740.0,118730.0,0.7549521]
[1753358286283,1.70805054,118740.0,118730.0,0.7549521]
[1753358288587,1.70629054,118740.0,118730.0,0.7549521]
[1753358289180,1.28481382,118740.0,118730.0,0.7549521]
[1753358289380,1.11333054,118740.0,118730.0,0.7549521]
[1753358289687,1.70617054,118740.0,118730.0,0.7549521]
[1753358289886,1.11333054,118740.0,118730.0,0.7549521]
[1753358290083,1.70609054,118740.0,118730.0,0.7549521]
[1753358291390,1.11333054,118740.0,118730.0,0.7549521]
[1753358291582,1.70609054,118740.0,118730.0,0.7549521]
[1753358294590,1.72444401,118740.0,118730.0,0.7549521]
[1753358296089,1.93518237,118740.0,118730.0,0.50048]
[1753358296485,1.93518237,118740.0,118730.0,0.09763]
[1753358296792,1.93518237,118740.0,118730.0,0.004]
[1753358299198,1.584057,118740.0,118730.0,0.004]
[1753358300101,1.584057,118740.0,118730.0,0.0524]
[1753358301703,1.584057,118740.0,118730.0,0.09559]
[1753358303103,1.30296729,118740.0,118730.0,0.09559]
[1753358303296,1.584057,118740.0,118730.0,0.09559]
[1753358308104,1.585057,118740.0,118730.0,0.09459]
[1753358308611,1.585057,118740.0,118730.0,0.45239]
[1753358308612,1.586057,118740.0,118730.0,0.45239]
[1753358309203,1.586057,118740.0,118730.0,0.09159]
[1753358311511,1.30496729,118740.0,118730.0,0.09159]
[1753358311811,1.586057,118740.0,118730.0,0.09159]
[1753358312114,1.586057,118740.0,118730.0,0.45239]
[1753358312411,1.586057,118740.0,118730.0,0.09159]
[1753358312609,1.586057,118740.0,118730.0,0.45239]
[1753358313703,1.586057,118740.0,118730.0,0.09159]
[1753358315411,1.586057,118740.0,118730.0,0.45239]
[1753358316302,1.586057,118740.0,118730.0,0.09159]
[1753358318214,1.58603088,118740.0,118730.0,0.09159]
[1753358319214,1.93737279,118740.0,118730.0,0.09159]
[1753358325421,1.93737279,118740.0,118730.0,0.13259]
[1753358327923,1.93737279,118740.0,118730.0,0.09159]
[1753358329725,1.93737279,118740.0,118730.0,0.13259]
[1753358330919,1.93737279,118740.0,118730.0,0.49339]
[1753358331123,1.93529279,118740.0,118730.0,0.13259]
[1753358331926,1.93529279,118740.0,118730.0,0.49339]
[1753358333227,1.93533279,118740.0,118730.0,0.49339]
[1753358333916,1.93533279,118740.0,118730.0,0.55079]
[1753358339626,3.10033279,118740.0,118730.0,0.55079]
[1753358343629,3.10033279,118740.0,118730.0,0.49339]
[1753358344417,3.10033279,118740.0,118730.0,0.09159]
[1753358345323,0.1787117,118730.0,118720.0,0.08203]
[1753358345530,0.2838759,118720.0,118710.0,0.41544]
[1753358345718,1.27463487,118720.0,118710.0,0.41544]
[1753358345924,0.2838901,118710.0,118700.0,0.44585]
[1753358346126,1.65431853,118710.0,118700.0,0.44585]
[1753358346324,1.78150475,118710.0,118700.0,0.44585]
[1753358347228,1.78150475,118710.0,118700.0,0.49314]
[1753358347533,1.78150475,118710.0,118700.0,0.57452]
[1753358347833,1.78150475,118710.0,118700.0,0.57752]
[1753358348537,1.78150475,118710.0,118700.0,0.57552]
[1753358349324,1.78150475,118710.0,118700.0,0.57352]
[1753358349726,1.78150475,118710.0,118700.0,0.48847]
[1753358350627,1.78150475,118710.0,118700.0,0.12767]
[1753358351132,1.78150475,118710.0,118700.0,0.08654]
[1753358351333,1.7631774,118710.0,118700.0,0.04629]
[1753358351534,1.78154284,118710.0,118700.0,0.08654]
[1753358352330,2.14234284,118710.0,118700.0,0.08654]
[1753358353235,2.35315338,118710.0,118700.0,0.08654]
[1753358354537,2.14234284,118710.0,118700.0,0.08654]
[1753358355137,2.35315338,118710.0,118700.0,0.04629]
[1753358355339,2.14234284,118710.0,118700.0,0.04629]
[1753358356640,2.14234284,118710.0,118700.0,0.08654]
[1753358357542,1.78154284,118710.0,118700.0,0.08654]
[1753358359636,1.99235338,118710.0,118700.0,0.04629]
[1753358359834,1.40187338,118710.0,118700.0,0.04629]
[1753358360035,1.78190284,118710.0,118700.0,0.04629]
[1753358360235,1.19106284,118710.0,118700.0,0.04629]
[1753358360440,1.19106284,118710.0,118700.0,0.08654]
[1753358360637,1.78194284,118710.0,118700.0,0.08654]
[1753358361035,1.19106284,118710.0,118700.0,0.08654]
[1753358361235,1.78214284,118710.0,118700.0,0.08654]
[1753358361435,1.19106284,118710.0,118700.0,0.08654]
[1753358361938,1.78206284,118710.0,118700.0,0.08654]
[1753358362744,1.19106284,118710.0,118700.0,0.08654]
[1753358362944,1.78218284,118710.0,118700.0,0.08654]
[1753358363344,1.78218284,118710.0,118700.0,0.12767]
[1753358363552,0.76944176,118710.0,118700.0,0.12767]
[1753358363847,1.78218284,118710.0,118700.0,0.12767]
[1753358364741,1.78222284,118710.0,118700.0,0.12767]
[1753358365045,1.78222284,118710.0,118700.0,0.21272]
[1753358367343,1.19106284,118710.0,118700.0,0.21272]
[1753358367549,2.94734284,118710.0,118700.0,0.21272]
[1753358368748,2.94726284,118710.0,118700.0,0.21272]
[1753358370152,2.94737776,118710.0,118700.0,0.21272]
[1753358370644,2.94737698,118710.0,118700.0,0.21272]
[1753358370845,2.94749698,118710.0,118700.0,0.21272]
[1753358371551,2.94769698,118710.0,118700.0,0.21272]
[1753358371844,2.94769698,118710.0,118700.0,0.08654]
[1753358372855,2.5260759,118710.0,118700.0,0.08654]
[1753358373064,2.5260759,118710.0,118700.0,0.12488]
[1753358373352,2.94769698,118710.0,118700.0,0.12488]
[1753358373540,2.94777698,118710.0,118700.0,0.12488]
[1753358375355,1.19117698,118710.0,118700.0,0.12488]
[1753358375553,2.94813698,118710.0,118700.0,0.12488]
[1753358377357,1.19117698,118710.0,118700.0,0.12488]
[1753358377558,2.94809698,118710.0,118700.0,0.12488]
[1753358378356,1.19117698,118710.0,118700.0,0.12488]
[1753358378564,2.94797698,118710.0,118700.0,0.12488]
[1753358389970,2.94797698,118710.0,118700.0,0.08654]
[1753358395769,2.35649698,118710.0,118700.0,0.08654]
[1753358395970,2.94621698,118710.0,118700.0,0.08654]
[1753358397074,2.94621698,118710.0,118700.0,0.001]
[1753358397270,0.2248539,118700.0,118690.0,0.43745]
[1753358397473,1.61840456,118700.0,118690.0,0.48094]
[1753358397674,1.74448545,118700.0,118690.0,0.48094]
[1753358398374,1.74448545,118700.0,118690.0,0.48194]
[1753358398770,1.74448545,118700.0,118690.0,0.48394]
[1753358399573,1.95529599,118700.0,118690.0,0.4456]
[1753358399772,1.95529599,118700.0,118690.0,0.0848]
[1753358400182,1.95529599,118700.0,118690.0,0.12397]
[1753358400469,2.31609599,118700.0,118690.0,0.04649]
[1753358400674,1.95529599,118700.0,118690.0,0.04649]
[1753358400863,1.95529599,118700.0,118690.0,0.0848]
[1753358401270,1.95540025,118700.0,118690.0,0.0848]
[1753358402473,2.31620025,118700.0,118690.0,0.0848]
[1753358403072,1.32296863,118700.0,118690.0,0.0848]
[1753358403273,1.95540025,118700.0,118690.0,0.0848]
[1753358403979,1.74458971,118700.0,118690.0,0.12397]
[1753358404278,2.24882397,118700.0,118670.0,0.04349]
[1753358404576,0.65582188,118680.0,118670.0,0.08266]
[1753358404878,0.65582188,118680.0,118670.0,0.1651]
[1753358404879,1.7109837,118680.0,118670.0,0.1651]
[1753358405076,1.1207037,118680.0,118670.0,0.1651]
[1753358405271,1.7109837,118680.0,118670.0,0.5259]
[1753358406379,1.69239986,118680.0,118670.0,0.56421]
[1753358406578,1.69239986,118680.0,118670.0,0.732655]
[1753358406776,1.69239986,118680.0,118670.0,0.734655]
[1753358407380,1.69239986,118680.0,118670.0,0.56621]
[1753358407575,1.76028082,118680.0,118670.0,0.734655]
[1753358407776,1.76028082,118680.0,118670.0,0.732655]
[1753358408583,1.76008082,118680.0,118670.0,0.733655]
[1753358408982,1.17000082,118680.0,118670.0,0.733655]
[1753358409184,1.76028082,118680.0,118670.0,0.733655]
[1753358409478,1.76020082,118680.0,118670.0,0.56521]
[1753358409683,1.76020082,118680.0,118670.0,0.733655]
[1753358410178,1.76020082,118680.0,118670.0,0.734655]
[1753358411479,1.17000082,118680.0,118670.0,0.734655]
[1753358411679,1.51111028,118680.0,118670.0,0.94546554]
[1753358411883,1.10469894,118680.0,118670.0,1.29546554]
[1753358412185,0.33713144,118690.0,118680.0,0.3501831]
[1753358412186,0.1684189,118690.0,118680.0,0.3501831]
[1753358412383,0.8490589,118690.0,118680.0,1.76306842]
[1753358412583,0.97483156,118690.0,118680.0,1.93158042]
[1753358412786,0.8490589,118690.0,118680.0,1.93158042]
[1753358413090,0.68064,118690.0,118680.0,1.87118278]
[1753358413385,0.59064,118690.0,118680.0,1.73067688]
[1753358413580,0.1684024,118700.0,118690.0,0.4981326]
[1753358413788,1.0988024,118700.0,118690.0,1.5726736]
[1753358414082,0.7404,118700.0,118690.0,1.9911696]
[1753358414288,0.7404,118700.0,118690.0,1.7411696]
[1753358414688,0.15,118700.0,118690.0,1.68064688]
[1753358414876,0.15,118700.0,118690.0,1.68164688]
[1753358415076,0.15,118700.0,118690.0,1.68264688]
[1753358415077,0.3184024,118700.0,118690.0,1.68264688]
[1753358416386,0.3184024,118700.0,118690.0,1.74311621]
[1753358416587,0.15,118700.0,118690.0,1.74311621]
[1753358417374,0.3184024,118700.0,118690.0,1.46200103]
[1753358417579,0.79154146,118700.0,118690.0,1.41989793]
[1753358418084,0.75294146,118700.0,118690.0,1.41989793]
[1753358419384,0.47182628,118700.0,118690.0,1.41989793]
[1753358420387,0.47182628,118700.0,118690.0,1.3594286]
[1753358420785,0.75294146,118700.0,118690.0,1.1909326]
[1753358420983,0.75294146,118700.0,118690.0,0.8567277]
[1753358421184,0.96154146,118700.0,118690.0,0.7346266]
[1753358421592,0.96154146,118700.0,118690.0,1.0546266]
[1753358424593,0.96154146,118700.0,118690.0,0.7346266]
[1753358424796,0.96154146,118700.0,118690.0,0.8046266]
[1753358426891,0.96154146,118700.0,118690.0,0.8036266]
[1753358428189,0.96154146,118700.0,118690.0,0.8136266]
[1753358428596,0.96154146,118700.0,118690.0,1.10893286]
[1753358428795,0.64182628,118700.0,118690.0,1.10893286]
[1753358429198,0.64182628,118700.0,118690.0,1.10793286]
[1753358432499,0.64182628,118700.0,118690.0,0.77793286]
[1753358432700,0.64182628,118700.0,118690.0,1.10793286]
[1753358433198,0.64182628,118700.0,118690.0,0.77793286]
[1753358433402,0.92294146,118700.0,118690.0,1.12793286]
[1753358433703,0.92294146,118700.0,118690.0,0.85793286]
[1753358434203,0.92294146,118700.0,118690.0,1.09793286]
[1753358434405,0.92294146,118700.0,118690.0,0.84793286]
[1753358434604,0.96111146,118700.0,118690.0,0.84793286]
[1753358435599,0.67999628,118700.0,118690.0,0.84793286]
[1753358435904,0.96111146,118700.0,118690.0,0.84793286]
[1753358436505,0.96111146,118700.0,118690.0,1.11793286]
[1753358436705,0.67999628,118700.0,118690.0,1.11793286]
[1753358436907,0.96111146,118700.0,118690.0,1.11793286]
[1753358441200,0.96111146,118700.0,118690.0,1.13309593]
[1753358441407,0.92294146,118700.0,118690.0,1.13309593]
[1753358442506,0.96111146,118700.0,118690.0,0.87309593]
[1753358442810,0.96111146,118700.0,118690.0,1.14309593]
[1753358445001,0.96111146,118700.0,118690.0,1.15309593]
[1753358449117,1.10171988,118700.0,118690.0,1.07395773]
[1753358449303,1.10171988,118700.0,118690.0,1.14309593]
[1753358449510,1.10171988,118700.0,118690.0,1.34395773]
[1753358449817,1.10171988,118700.0,118690.0,0.86309593]
[1753358450009,0.67999628,118700.0,118690.0,1.12309593]
[1753358450210,1.10171988,118700.0,118690.0,1.0626266]
[1753358451314,1.10171988,118700.0,118690.0,0.8026266]
[1753358451513,1.10171988,118700.0,118690.0,1.0134884]
[1753358452023,1.10171988,118700.0,118690.0,0.8026266]
[1753358452223,1.10171988,118700.0,118690.0,1.0134884]
[1753358453123,1.10171988,118700.0,118690.0,0.8026266]
[1753358453311,1.10171988,118700.0,118690.0,1.0134884]
[1753358453510,1.10171988,118700.0,118690.0,1.07414745]
[1753358454422,1.10171988,118700.0,118690.0,1.17328565]
[1753358454617,1.10171988,118700.0,118690.0,1.38414745]
[1753358456922,1.10171988,118700.0,118690.0,0.79328565]
[1753358457119,1.10171988,118700.0,118690.0,1.08414745]
[1753358457312,1.10171988,118700.0,118690.0,1.33414745]
[1753358458031,1.10171988,118700.0,118690.0,1.12328565]
[1753358458219,1.10171988,118700.0,118690.0,1.33414745]
[1753358458724,0.89085808,118700.0,118690.0,1.33414745]
[1753358459819,0.89085808,118700.0,118690.0,1.2734884]
[1753358460023,0.89085808,118700.0,118690.0,1.3341486]
[1753358464332,0.89085808,118700.0,118690.0,1.2734884]
[1753358465526,0.89085808,118700.0,118690.0,1.33414959]
[1753358467929,0.89085808,118700.0,118690.0,1.69494959]
[1753358468632,0.67999628,118700.0,118690.0,1.69494959]
[1753358468831,0.89085808,118700.0,118690.0,1.69494959]
[1753358469824,0.89085808,118700.0,118690.0,1.48408779]
[1753358470020,0.89085808,118700.0,118690.0,1.69494959]
[1753358470333,0.89085808,118700.0,118690.0,1.48408779]
[1753358470634,0.89085808,118700.0,118690.0,1.69494959]
[1753358471232,0.89085808,118700.0,118690.0,1.48408779]
[1753358471529,0.89085808,118700.0,118690.0,1.69494959]
[1753358471928,1.10171988,118700.0,118690.0,1.69494959]
[1753358472131,0.89085808,118700.0,118690.0,1.69494959]
[1753358472530,0.89085808,118700.0,118690.0,1.6342884]
[1753358472930,0.89085808,118700.0,118690.0,1.69495126]
[1753358473330,0.89085808,118700.0,118690.0,1.48408946]
[1753358473530,0.89085808,118700.0,118690.0,1.69495126]
[1753358476236,0.89085808,118700.0,118690.0,1.48408946]
[1753358476436,0.89085808,118700.0,118690.0,1.69495126]
[1753358481144,0.67999628,118700.0,118690.0,1.69495126]
[1753358481439,0.89085808,118700.0,118690.0,1.69495126]
[1753358482245,0.85268808,118700.0,118690.0,1.69495126]
[1753358482542,0.85268808,118700.0,118690.0,1.6342884]
[1753358482843,0.12625388,118700.0,118690.0,1.9058167]
[1753358483141,1.5443959,118720.0,118710.0,0.08278]
[1753358483341,2.60204058,118720.0,118710.0,0.92378]
[1753358483646,2.76805607,118720.0,118710.0,0.92378]
[1753358483852,2.76805607,118720.0,118710.0,1.0921682]
[1753358484152,2.76805607,118720.0,118710.0,0.92378]
[1753358484348,2.81161607,118720.0,118710.0,0.20218]
[1753358484646,2.84948607,118720.0,118710.0,0.7313683]
[1753358485152,2.42776247,118720.0,118710.0,0.7313683]
[1753358485356,2.84948607,118720.0,118710.0,0.7313683]
[1753358485951,2.85148607,118720.0,118710.0,0.7313683]
[1753358487153,2.77105607,118720.0,118710.0,0.7313683]
[1753358487756,2.81494607,118720.0,118710.0,0.7313683]
[1753358488560,2.79668319,118720.0,118710.0,0.77681352]
[1753358488759,2.79668319,118720.0,118710.0,0.60842522]
[1753358489155,2.41118959,118720.0,118710.0,0.60842522]
[1753358489361,2.83291319,118720.0,118710.0,0.60842522]
[1753358489664,2.83291319,118720.0,118710.0,0.77681342]
[1753358490659,2.83291319,118720.0,118710.0,0.60842522]
[1753358491057,2.41118959,118720.0,118710.0,0.77681352]
[1753358491355,2.83291319,118720.0,118710.0,0.77681352]
[1753358491747,2.41118959,118720.0,118710.0,0.77681352]
[1753358491952,2.83291319,118720.0,118710.0,0.77681352]
[1753358496256,2.79668319,118720.0,118710.0,0.98767532]
[1753358496456,2.50197139,118720.0,118710.0,1.3122301]
[1753358496656,2.29110959,118720.0,118710.0,1.3122301]
[1753358496856,1.99644,118720.0,118710.0,1.3122301]
[1753358497052,1.9964,118720.0,118710.0,1.37289193]
[1753358497253,0.013,118720.0,118710.0,1.5230919]
[1753358497459,0.23550956,118740.0,118730.0,0.3683999]
[1753358497656,0.23550956,118740.0,118730.0,1.6808617]
[1753358497657,0.54549986,118740.0,118730.0,1.6808617]
[1753358497963,1.13373986,118740.0,118730.0,1.6808617]
[1753358498356,0.96539416,118740.0,118730.0,1.6808617]
[1753358498662,0.96739416,118740.0,118730.0,1.6808617]
[1753358498862,1.13573986,118740.0,118730.0,1.6808617]
[1753358499063,1.13573986,118740.0,118730.0,1.74139147]
[1753358499263,1.13573986,118740.0,118730.0,1.6808617]
[1753358499764,1.13673986,118740.0,118730.0,1.6808617]
[1753358500457,1.13673986,118740.0,118730.0,1.74139147]
[1753358501165,0.70839416,118740.0,118730.0,1.8114407]
[1753358501364,0.87673986,118740.0,118730.0,1.75091093]
[1753358503667,0.70839416,118740.0,118730.0,1.75091093]
[1753358503967,0.70839416,118740.0,118730.0,1.75951321]
[1753358504268,0.65839416,118740.0,118730.0,1.75951321]
[1753358505157,0.65839416,118740.0,118730.0,1.82004298]
[1753358505361,0.65839416,118740.0,118730.0,1.75951321]
[1753358505770,0.59124,118740.0,118730.0,1.75951321]
[1753358506465,0.003,118740.0,118730.0,1.75951321]
[1753358506669,0.59096,118740.0,118730.0,1.75951321]
[1753358507568,0.20131,118790.0,118780.0,0.331769]
[1753358507766,0.09959913,118790.0,118780.0,1.37084003]
[1753358507968,0.81440476,118790.0,118780.0,1.72084003]
[1753358508164,0.79632563,118790.0,118780.0,1.089929]
[1753358508372,0.79632563,118790.0,118780.0,1.75084003]
[1753358508674,0.20836563,118790.0,118780.0,1.5151911]
[1753358509168,0.79620563,118790.0,118780.0,1.5151911]
[1753358509363,0.79620563,118790.0,118780.0,1.469929]